{"text_format":"1","workbook":"xlsx","n_sheets":2,"sheets":["Pasiūlymas","Subtiekėjai"],"not_rendered":{"charts":0,"images":0,"macros":1,"external_links":0,"defined_names":1,"comments":0,"pivot_tables":0},"unopened":[],"bounds":{"document_bytes":16777216,"sheet_cells":100000,"rows_first":2000,"rows_last":500,"rows_between":2000,"halvings":0,"cell_chars":16384,"cell_head_chars":4096},"cells_cut":0,"cells_raw":0,"read":"whole","date_system":"1900"}

{"sheet":"Pasiūlymas","index":0,"n_rows":502,"n_cols":13,"rows_kept":502,"cut":false,"hidden":false,"merged":[[9,0,9,1],[9,2,9,4],[10,0,10,1],[10,2,10,4],[11,0,11,1],[11,2,11,4],[12,0,12,1],[12,2,12,4],[13,0,13,1],[13,2,13,4],[14,0,14,1],[14,2,14,4],[15,0,15,1],[15,2,15,4],[16,0,16,1],[16,2,16,4],[17,0,17,1],[17,2,17,4],[18,0,18,1],[18,2,18,4],[19,0,19,1],[19,2,19,4],[22,0,22,5],[28,1,28,7],[39,1,39,7],[48,1,48,7],[60,1,60,7],[68,1,68,7],[78,1,78,7],[87,1,87,7],[97,1,97,7],[122,1,122,7],[130,1,130,7],[138,1,138,7],[145,1,145,7],[152,1,152,7],[159,1,159,7],[166,1,166,7],[172,1,172,7],[178,1,178,7],[184,1,184,7],[190,1,190,7],[196,1,196,7],[202,1,202,7],[213,1,213,7],[267,1,267,7],[274,1,274,7],[282,1,282,7],[291,1,291,7],[299,1,299,7],[309,1,309,7],[318,1,318,7],[325,1,325,7],[334,1,334,7],[341,1,341,7],[353,1,353,7],[363,1,363,7],[374,1,374,7],[383,1,383,7],[390,1,390,7],[401,1,401,7],[413,1,413,7],[419,1,419,7],[428,1,428,7],[434,1,434,7],[444,1,444,7],[454,1,454,7],[461,1,461,7],[468,1,468,7],[475,1,475,7],[482,1,482,7],[489,1,489,7],[496,1,496,7]]}
["Perkančioji organizacija, kuriai teikiamas pasiūlymas:",null,"VŠĮ Kauno klinikinė ligoninė"]
[]
[null,"PASIŪLYMAS"]
[null,"Vienkartinės medicininės priemonės"]
[]
["Data:","2018-04-10"]
["Nr.:",20324]
["Vieta:","Kaunas"]
[]
["Tiekėjo pavadinimas /Jeigu dalyvauja ūkio subjektų grupė, surašomi visi dalyvių pavadinimai/",null,"UAB \"Skirgesa\""]
["Įmonės kodas /Jeigu dalyvauja ūkio subjektų grupė, surašomi visi dalyvių kodai/",null,234449420]
["PVM mokėtojo kodas /Jeigu dalyvauja ūkio subjektų grupė, surašomi visi dalyvių kodai/",null,"LT344494219 "]
["Banko pavadinimas, banko kodas, sąskaitos Nr.",null,"A/s. LT41 7300 0100 7979 6368, AB Swedbank, banko kodas 73000\n"]
["Tiekėjo adresas /Jeigu dalyvauja ūkio subjektų grupė, surašomi visi dalyvių adresai/",null,"Energetikų g. 8, Kaunas"]
["Telefono numeris",null,"8 37 457746"]
["Fakso numeris",null,"8 37 458161"]
["El. pašto adresas",null,"info@skirgesa.lt"]
["Asmens, pasirašiusio pasiūlymą saugiu elektroniniu parašu, vardas, pavardė, pareigos ",null,"Administratorė Gintarė Saročkienė"]
["Asmens, įgalioto pasirašyti sutartį, vardas, pavardė, pareigos",null,"Direktorius Skirmantas Akelis"]
[]
[]
[]
["1. Šiuo pasiūlymu pažymime, kad sutinkame su visomis pirkimo sąlygomis, nustatytomis:\n1) pirkimo skelbime, paskelbtame Viešųjų pirkimų įstatymo nustatyta tvarka;\n2) pirkimo sąlygose ir kituose pirkimo dokumentuose (jų paaiškinimuose, papildymuose).\n"]
[]
["Siūlomas pirkimo objektas visiškai atitinka pirkimo sąlygose nustatytus reikalavimus ir jo kaina yra:"]
[]
[]
["Nr.","Pavadinimas","Kiekis","Mato vienetas","Kaina be PVM","Suma be PVM","Siūlomos prekės pavadinimas ir/ar gamintojas","Siūlomos prekės parametrai",null,null,"","",""]
["151.","Elektrodai"]
["151.1.","Elektrodai vienkartiniai suaugusiems ",90000,"Vnt.",0.04,{"$f":"E30*C30","v":3600},"ECG Electrode, Esvico Sp. Z.o.o.","","",""]
["151.1.1.","45 x 42mm",null,null,null,null,null,"45 x 42mm"]
["151.1.2.","Konraktinė dalis Ag/AgCl skystas gelis, putos",null,null,null,null,null,"Kontaktinė dalis Ag/AgCl skystas gelis, putos"]
["151.2.","Elektrodai vienkartiniai vaikams",900,"Vnt.",0.04,{"$f":"E33*C33","v":36},"Pediatric ECG Electrode, Esvico Sp. Z.o.o.","","",""]
["151.2.1.","26 x 30mm",null,null,null,null,null,"26 x 30mm",null,null,null,""]
["151.2.2.","Konraktinė dalis Ag/AgCl skystas gelis, putos",null,null,null,null,null,"Kontaktinė dalis Ag/AgCl skystas gelis, putos",null,null,null,""]
[null,"","","","Suma be PVM",{"$f":"SUM(F30:F33)","v":3636},"","","","","",""]
[null,"","","","PVM suma",{"$f":"F38-F36","v":181.8},"","","","","",""]
[null,"","","","Suma su PVM",{"$f":"F36*1.05","v":3817.8},"","","","","",""]
[]
["152.","Guminiai elektrodai"]
["152.1.","Guminiai elektrodai",100,"Vnt.",null,null,null,"","",""]
["152.1.1.","Skirti prie Endomco ir Sonopuls aparatų. Išmatavimai 4 x 6 cm ± 0,5cm"]
["152.2.","Guminiai elektrodai",80,"Vnt.",null,null,null,"","","",null,""]
["152.2.1.","kirti prie Endomco ir Sonopuls aparatų. Išmatavimai 6 x 8 cm ± 0,5cm",null,null,null,null,null,null,null,"",null,""]
[null,"","","","Suma be PVM",null,"","","","","",""]
[null,"","","","PVM suma",null,"","","","","",""]
[null,"","","","Suma su PVM",null,"","","","","",""]
[null,null,null,null,null,null,null,null,null,"","",""]
["153.","Neutralus paciento elektrodas",null,null,null,null,null,null,null,"","",""]
["153.1.","Neutralus paciento elektrodas",3000,"Vnt.",null,null,null,"","",""]
["153.1.1.","Vienkartinis, neutralus paciento elektrodas. Individualiose pakuotėse"]
["153.1.2.","Laidus plotas 135±5cm², be latekso"]
["153.1.3.","Biosuderinamas"]
["153.1.4.","Padalintas, perdavimo medžiaga PET/aliuminis"]
["153.1.5.","Drugelio formos"]
["153.1.6.","Paviršius padengtas hidrogeliu, lipnus"]
[null,"","","","Suma be PVM",null,"","","","","",""]
[null,"","","","PVM suma",null,"","","","","",""]
[null,"","","","Suma su PVM",null,"","","","","",""]
[]
["154.","Elektrodai holteriui"]
["154.1.","Elektrodai holteriui",11000,"Vnt.",7.0000000000000007E-2,{"$f":"E62*C62","v":770},"ECG Electrodes, P. J. Dahlhausen & Co. GmbH","","",""]
["154.1.1.","Holterio elektrodai turi būti nemažesni nei ø 55 mm skersmens",null,null,null,null,null,"Holterio elektrodai  ø 60 mm skersmens"]
["154.1.2."," Kontaktinė dalis Ag/AgCl, skystas gelis, putos",null,null,null,null,null," Kontaktinė dalis Ag/AgCl, skystas gelis, putos"]
[null,"","","","Suma be PVM",{"$f":"F62","v":770},"","","","","",""]
[null,"","","","PVM suma",{"$f":"F67-F65","v":38.5},"","","","","",""]
[null,"","","","Suma su PVM",{"$f":"F65*1.05","v":808.5},"","","","","",""]
[]
["155.","Elektrodai"]
["155.1.","Elektrodai",3800,"Vnt.",null,null,null,"","",""]
["155.1.1.","Elektrodai skirti odos darinių koaguliacijai"]
["155.1.2.","Vienkartiniai, nesterilūs"]
["155.1.3.","Aštrūs, nerūdijančio metalo"]
["155.1.4.","Tinkami elektro aparatui HYFRECATOR-2000"]
[null,"","","","Suma be PVM",null,"","","","","",""]
[null,"","","","PVM suma",null,"","","","","",""]
[null,"","","","Suma su PVM",null,"","","","","",""]
[]
["156.","EKG elektrodai"]
["156.1.","EKG elektrodai",20,"Vnt.",25,{"$f":"C80*E80","v":500},"Fazzini","","",""]
["156.1.1.","Krūtininiai (guminiai, vakuminiai, komplekte 6 vnt.)",null,null,null,null,null,"Krūtininiai elektrodai, guminiai EKG aparatui\nRinkinys iš 6 vienetų\nAG/AGCL\n2062000324 24 mm"]
["156.2.","EKG elektrodai",20,"Vnt.",17,{"$f":"C82*E82","v":340},"Fazzini","","",""]
["156.2.1.","Galūniniai (plastikiniai, komplekte 4 vnt.)",null,null,null,null,null,"Elektrodai-spaustukai EKG aparatui\nRinkinys iš 4 vienetų\n2011000300 Ag/AgCl"]
[null,"","","","Suma be PVM",{"$f":"SUM(F80:F83)","v":840},"","","","","",""]
[null,"","","","PVM suma",{"$f":"F86-F84","v":176.4},"","","","","",""]
[null,"","","","Suma su PVM",{"$f":"F84*1.21","v":1016.4},"","","","","",""]
[]
["157.","Terapijos elektrodas "]
["157.1.","Terapijos elektrodas. Elektrodai išorinės stimuliacijos-  defibriliacijos",50,"Vnt.",null,null,null,"","",""]
["157.1.1.","Vienkartiniai, kliniškai švarūs. Turi būti CE ženklinimas"]
["157.1.2.","Elektrodai su 1 m (3,5 ft) laidu"]
["157.1.3.","Sukurtas pacientams sveriantiems 15kg ar daugiau"]
["157.1.4.","Skirtas prijungti prie defibbriliatoriaus „LIFEPAK 20e“ 11/12/15"]
[null,"","","","Suma be PVM",null,"","","","","",""]
[null,"","","","PVM suma",null,"","","","","",""]
[null,"","","","Suma su PVM",null,"","","","","",""]
[]
["158.","Monopolinis elektrodas"]
["158.1.","Monopolinis elektrodas",40,"Vnt.",null,null,null,"","",""]
["158.1.1.","Adata tiesi, pagaminta iš volframo lydinio "]
["158.1.2.","(Ilgis x diametras) 20x0,3mm ± 0,1mm"]
["158.1.3.","Daugkartinė, autoklavuojama"]
["158.1.4.","Elektrodo kištukas 2,4mm tipo"]
["158.2.","Monopolinis elektrodas",40,"Vnt.",null,null,null,"","",""]
["158.2.1.","Trikampė kilputė, pagaminta iš volframo lydinio "]
["158.2.2.","Kilputės matmenys 9 ±0,1mm x 0,2mm "]
["158.2.3.","Daugkartinė, autoklavuojama"]
["158.2.4.","Elektrodo kištukas 2,4mm tipo"]
["158.3.","Monopolinis elektrodas",40,"Vnt.",null,null,null,"","",""]
["158.3.1.","Apvali kilputė, pagaminta iš volframo lydinio "]
["158.3.2.","Kilputės skersmuo 5mm ±0,1mm storis 0,2mm"]
["158.3.3.","Daugkartinė, autoklavuojama"]
["158.3.4.","Elektrodo kištukas 2,4mm tipo"]
["158.4.","Monopolinis elektrodas",40,"Vnt.",null,null,null,"","",""]
["158.4.1.","Apvali kilputė, pagaminta iš volframo lydinio "]
["158.4.2.","Kilputės skersmuo 8mm ±0,1mm storis 0,2mm"]
["158.4.3.","Daugkartinė, autoklavuojama"]
["158.4.4.","Elektrodo kištukas 2,4mm tipo"]
[null,"","","","Suma be PVM",null,"","","","","",""]
[null,"","","","PVM suma",null,"","","","","",""]
[null,"","","","Suma su PVM",null,"","","","","",""]
[]
["159.","Pasta elektrodų klijavimo"]
["159.1.","Pasta elektrodų klijavimo",7980,"g",null,null,null,"","",""]
["159.1.1.","Skirta EEG elektrodų klijavimui"]
["159.1.2.","Sudėtyje yra: Polyoxyethylene20 cetyl Ether, Glycerin, CalciumCarbonate, 1,2 Propanediol, Potassium Chloride, Gelwhite, Sodium Chloride, Polyoxythylene 20 Sorbitol, Methylparaben, Propylparaben"]
[null,"","","","Suma be PVM",null,"","","","","",""]
[null,"","","","PVM suma",null,"","","","","",""]
[null,"","","","Suma su PVM",null,"","","","","",""]
[]
["160.","Pasta odos paruošimo"]
["160.1.","Pasta odos paruošimo",6400,"g",null,null,null,"","",""]
["160.1.1.","Skirta EEG tyrimui"]
["160.1.2.","Sudėtyje yra: H2O, Aliuminum Oxide, 1,2 Propanediol, Sodium Polyacrylate, Methylparaben, Propylparaben, FD&C B1, FD&C R 40, FD&CY5"]
[null,"","","","Suma be PVM",null,"","","","","",""]
[null,"","","","PVM suma",null,"","","","","",""]
[null,"","","","Suma su PVM",null,"","","","","",""]
[]
["161.","Kaniulė nosies "]
["161.1.","Kaniulė nosies ",60,"Vnt.",0.25,{"$f":"E140*C140","v":15},"Nasal Oxygen Cannula, ZARYS International Group","","",""]
["161.1.1.","Vaikiška",null,null,null,null,null,"Vaikiška"]
[null,"","","","Suma be PVM",{"$f":"F140","v":15},"","","","","",""]
[null,"","","","PVM suma",{"$f":"F144-F142","v":0.75},"","","","","",""]
[null,"","","","Suma su PVM",{"$f":"F142*1.05","v":15.75},"","","","","",""]
[]
["162.","Kaniulė deguonies "]
["162.1.","Kaniulė deguonies ",12000,"Vnt.",0.17,{"$f":"E147*C147","v":2040},"Nasal Oxygen Cannula, Changshu Taining Medical Equipment","","",""]
["162.1.1.","Suaugusiems, 2m ilgio",null,null,null,null,null,"Suaugusiems, 2m ilgio"]
[null,"","","","Suma be PVM",{"$f":"F147","v":2040},"","","","","",""]
[null,"","","","PVM suma",{"$f":"F151-F149","v":102},"","","","","",""]
[null,"","","","Suma su PVM",{"$f":"F149*1.05","v":2142},"","","","","",""]
[]
["163.","Vamzdelis deguonies"]
["163.1.","Vamzdelis deguonies",50,"Vnt.",null,null,null,"","",""]
["163.1.1.","4 metrų su 5 jungtimi"]
[null,"","","","Suma be PVM",null,"","","","","",""]
[null,"","","","PVM suma",null,"","","","","",""]
[null,"","","","Suma su PVM",null,"","","","","",""]
[]
["164.","Jungtis deguonies vamzdelio pajungimui"]
["164.1.","Jungtis deguonies vamzdelio pajungimui",20,"Vnt.",null,null,null,"","",""]
["164.1.1.","Jungtys: 15F/22M- jungtis deguonies vamzdelio pajungimui 6mm"]
[null,"","","","Suma be PVM",null,"","","","","",""]
[null,"","","","PVM suma",null,"","","","","",""]
[null,"","","","Suma su PVM",null,"","","","","",""]
[]
["165.","Rezekcijos kilpa"]
["165.1.","Pusmėnulio formos, tinkanti firmos Karl Storz rezektoskopui    ",30,"Vnt.",null,null,null,"","",""]
[null,"","","","Suma be PVM",null,"","","","","",""]
[null,"","","","PVM suma",null,"","","","","",""]
[null,"","","","Suma su PVM",null,"","","","","",""]
[]
["166.","Rezekcijos kilpa"]
["166.1.","Pusmėnulio formos, tinkanti firmos Olympus rezektoskopui    ",30,"Vnt.",null,null,null,"","",""]
[null,"","","","Suma be PVM",null,"","","","","",""]
[null,"","","","PVM suma",null,"","","","","",""]
[null,"","","","Suma su PVM",null,"","","","","",""]
[]
["167.","Rezekcijos kilpa"]
["167.1.","Pusmėnulio formos, tinkanti firmos Wolf rezektoskopui    ",30,"Vnt.",null,null,null,"","",""]
[null,"","","","Suma be PVM",null,"","","","","",""]
[null,"","","","PVM suma",null,"","","","","",""]
[null,"","","","Suma su PVM",null,"","","","","",""]
[]
["168.","Rezekcijos volelis"]
["168.1.","Cilindro formos, tinkanti firmos Karl Storz rezektoskopui",10,"Vnt.",null,null,null,"","",""]
[null,"","","","Suma be PVM",null,"","","","","",""]
[null,"","","","PVM suma",null,"","","","","",""]
[null,"","","","Suma su PVM",null,"","","","","",""]
[]
["169.","Rezekcijos volelis"]
["169.1.","Cilindro formos, tinkanti firmos Olympus rezektoskopui",10,"Vnt.",null,null,null,"","",""]
[null,"","","","Suma be PVM",null,"","","","","",""]
[null,"","","","PVM suma",null,"","","","","",""]
[null,"","","","Suma su PVM",null,"","","","","",""]
[]
["170.","Rezekcijos volelis"]
["170.1.","Cilindro formos, tinkanti firmos Wolf rezektoskopui",10,"Vnt.",null,null,null,"","",""]
[null,"","","","Suma be PVM",null,"","","","","",""]
[null,"","","","PVM suma",null,"","","","","",""]
[null,"","","","Suma su PVM",null,"","","","","",""]
[]
["171.","Vielos (prie rezektoskopo)"]
["171.1.","Vielos (prie rezektoskopo)",20,"Vnt.",null,null,null,"","",""]
["171.1.1.","1:1 sukimo perdavimas"]
["171.1.2.","Dengtos hidrofiline danga nuo 0,032 iki 0,035“storio, nuo 150 iki 180cm ilgio"]
["171.1.3.","Galimi modeliai: plieno arba 100% nitinolio"]
["171.1.4.","Modelis skirtas naudoti per odą >100cm ilgio, >7cm lenktu arba tiesiu galu"]
["171.1.5.","Galiukas tiesus arba lenktas ne mažiau 3cm, netraumuojantis (lankstus arba kietas)"]
[null,"","","","Suma be PVM",null,"","","","","",""]
[null,"","","","PVM suma",null,"","","","","",""]
[null,"","","","Suma su PVM",null,"","","","","",""]
[]
["172.","Geležtės osciliuojančio pjovimo pjūklui\n"]
["172.1.","Geležtės osciliuojančio pjovimo pjūklui",30,"Vnt.",null,null,null,"","",""]
["172.1.1.","Osciliuojančio ir sagitalinio pjovimo geležtės, stambių bei smulkių kaulų osteosintezei"]
["172.1.2.","Geležtės turi tikti ligoninėje esančioms CONMED Linvatec Hall50, MPower2, PowerPro sistemoms"]
["172.1.3.","Geležtės techniniai parametrai:\nMClass tipo geležtės su iškylimais ir kiaurymėmis, graduotos kas 0,5cm"]
["172.1.4.","Plotis: 19mm ±1mm; ilgis: 105mm ± 1mm; storis: nuo 1,19mm iki 1,37mm (ne mažiau kaip 3 storių)"]
["172.2.","Geležtės osciliuojančio pjovimo pjūklui",30,"Vnt.",null,null,null,"","",""]
["172.2.1.","Osciliuojančio ir sagitalinio pjovimo geležtės, stambių bei smulkių kaulų osteosintezei"]
["172.2.2.","Geležtės turi tikti ligoninėje esančioms CONMED Linvatec Hall50, MPower2, PowerPro sistemoms"]
["172.2.3.","Geležtės techniniai parametrai: MClass tipo geležtės su iškylimais ir kiaurymėmis, graduotos kas 0,5cm"]
["172.2.4.","Plotis: 19mm ± 1mm; ilgis: 90mm ± 1mm; storis: nuo 0,89mm iki 1,47mm (ne mažiau kaip 7 storių)"]
["172.3.","Geležtės osciliuojančio pjovimo pjūklui",30,"Vnt.",null,null,null,"","",""]
["172.3.1.","Osciliuojančio ir sagitalinio pjovimo geležtės, stambių bei smulkių kaulų osteosintezei"]
["172.3.2.","Geležtės turi tikti ligoninėje esančioms CONMED Linvatec Hall50, MPower2, PowerPro sistemoms"]
["172.3.3.","Geležtės techniniai parametrai: MClass tipo geležtės su iškylimais ir kiaurymėmis, graduotos kas 0,5cm"]
["172.3.4.","Plotis: 25mm ± 1mm; ilgis: 90mm ± 1mm; storis: nuo 0,89mm iki 1,47mm (ne mažiau kaip 7 storių)"]
["172.4.","Geležtės osciliuojančio pjovimo pjūklui",30,"Vnt.",null,null,null,"","",""]
["172.4.1.","Osciliuojančio ir sagitalinio pjovimo geležtės, stambių bei smulkių kaulų osteosintezei"]
["172.4.2.","Geležtės turi tikti ligoninėje esančioms CONMED Linvatec Hall50, MPower2, PowerPro sistemoms"]
["172.4.3.","Geležtės techniniai parametrai: MClass tipo geležtės su iškylimais ir kiaurymėmis, graduotos kas 0,5cm"]
["172.4.4.","Plotis: 13mm ± 1mm; ilgis: 90mm ± 1mm; storis: nuo 0,89mm iki 1,47mm (ne mažiau kaip 7 storių)"]
["172.5.","Geležtės osciliuojančio pjovimo pjūklui",30,"Vnt.",null,null,null,"","",""]
["172.5.1.","Osciliuojančio ir sagitalinio pjovimo geležtės, stambių bei smulkių kaulų osteosintezei"]
["172.5.2.","Geležtės turi tikti ligoninėje esančioms CONMED Linvatec Hall50, MPower2, PowerPro sistemoms"]
["172.5.3.","Geležtės techniniai parametrai: graduotos kas 0,5cm"]
["172.5.4.","Plotis: 25mm ± 1mm; ilgis: 73mm ± 1mm; storis: 0,89mm ± 0,01mm"]
["172.6.","Geležtės osciliuojančio pjovimo pjūklui",100,"Vnt.",null,null,null,"","",""]
["172.6.1.","Osciliuojančio ir sagitalinio pjovimo geležtės, stambių bei smulkių kaulų osteosintezei"]
["172.6.2.","Geležtės turi tikti ligoninėje esančioms CONMED Linvatec Hall50, MPower2, PowerPro sistemoms"]
["172.6.3.","Geležtės techniniai parametrai: graduotos kas 0,5cm"]
["172.6.4.","Plotis: 10mm ± 1mm; ilgis: 85mm ± 1mm; storis: 1,27mm ± 0,01mm"]
["172.7.","Geležtės osciliuojančio pjovimo pjūklui",30,"Vnt.",null,null,null,"","",""]
["172.7.1.","Osciliuojančio ir sagitalinio pjovimo geležtės, stambių bei smulkių kaulų osteosintezei"]
["172.7.2.","Geležtės turi tikti ligoninėje esančioms CONMED Linvatec Hall50, MPower2, PowerPro sistemoms"]
["172.7.3.","Geležtės techniniai parametrai: graduotos kas 0,5cm"]
["172.7.4.","Plotis: 9,5mm ± 0,1mm; ilgis: 25,5mm ± 0,1mm; storis: 0,40mm ± 0,01mm; pjovimo storis: 0,60mm ± 0,01mm"]
["172.8.","Geležtės osciliuojančio pjovimo pjūklui",30,"Vnt.",null,null,null,"","",""]
["172.8.1.","Osciliuojančio ir sagitalinio pjovimo geležtės, stambių bei smulkių kaulų osteosintezei"]
["172.8.2.","Geležtės turi tikti ligoninėje esančioms CONMED Linvatec Hall50, MPower2, PowerPro sistemoms"]
["172.8.3.","Geležtės techniniai parametrai: graduotos kas 0,5cm, smulkiais dantukais"]
["172.8.4.","Plotis: 9mm ± 1mm; ilgis: 41mm ± 1mm. storis: 0,40mm ± 0,01mm; pjovimo storis: 0,60mm ± 0,01mm"]
["172.9.","Geležtės osciliuojančio pjovimo pjūklui",100,"Vnt.",null,null,null,"","",""]
["172.9.1.","Osciliuojančio ir sagitalinio pjovimo geležtės, stambių bei smulkių kaulų osteosintezei"]
["172.9.2.","Geležtės turi tikti ligoninėje esančioms CONMED Linvatec Hall50, MPower2, PowerPro sistemoms"]
["172.9.3.","Geležtės techniniai parametrai: graduotos kas 0,5cm, smulkiais dantukais"]
["172.9.4.","Plotis: 5mm ± 1mm; ilgis: 30mm ± 1mm. storis: 0,60mm ± 0,01mm; pjovimo storis: 1,10mm ± 0,01mm"]
["172.10.","Geležtės sagitalinio pjovimo pjūklui",50,"Vnt.",null,null,null,"","",""]
["172.10.1.","Osciliuojančio ir sagitalinio pjovimo geležtės, stambių bei smulkių kaulų osteosintezei"]
["172.10.2.","Geležtės turi tikti ligoninėje esančioms CONMED Linvatec Hall50, MPower2, PowerPro sistemoms"]
["172.10.3.","Geležtės techniniai parametrai:\nPlotis: 5,5mm ± 0,1mm; ilgis: 25,5mm ± 0,1mm. storis: 0,40mm ± 0,01mm; pjovimo storis: 0,60mm ± 0,01mm"]
[null,"","","","Suma be PVM",null,"","","","","",""]
[null,"","","","PVM suma",null,"","","","","",""]
[null,"","","","Suma su PVM",null,"","","","","",""]
[]
["173.","Surinkėjas šlapimo kūdikiams"]
["173.1.","Surinkėjas šlapimo kūdikiams 100ml",3000,"Vnt.",0.03,{"$f":"E269*C269","v":90},"Pediatric Urine bag, Shandong Zibo Shanchuan Medical Instrument","","",""]
["173.1.1.","Sterilūs, supakuoti po vieną",null,null,null,null,null,"Sterilūs, supakuoti po vieną"]
[null,"","","","Suma be PVM",{"$f":"F269","v":90},"","","","","",""]
[null,"","","","PVM suma",{"$f":"F273-F271","v":4.5},"","","","","",""]
[null,"","","","Suma su PVM",{"$f":"F271*1.05","v":94.5},"","","","","",""]
[]
["174.","Indas šlapimo"]
["174.1.","Indas šlapimo 120ml",35000,"Vnt.",null,null,null,"","",""]
["174.1.1.","Su užsukamu dangteliu"]
["174.1.2.","Su etikete užrašams"]
[null,"","","","Suma be PVM",null,"","","","","",""]
[null,"","","","PVM suma",null,"","","","","",""]
[null,"","","","Suma su PVM",null,"","","","","",""]
[]
["175.","Indas šlapimo"]
["175.1.","Indas šlapimo 60ml",100000,"Vnt.",null,null,null,"","",""]
["175.1.1.","Sterilus, individualus įpakavimas"]
["175.1.2.","Su užsukamu dangteliu"]
["175.1.3.","Su etikete užrašams"]
[null,"","","","Suma be PVM",null,"","","","","",""]
[null,"","","","PVM suma",null,"","","","","",""]
[null,"","","","Suma su PVM",null,"","","","","",""]
[]
["176.","Kaprologiniai indeliai fekalijoms "]
["176.1.","Kaprologiniai indeliai fekalijoms 30ml",11000,"Vnt.",null,null,null,"","",""]
["176.1.1.","Nesterilus, polipropileninis"]
["176.1.2.","Su užsukamu  dangteliu, su etikete, , su mentele"]
[null,"","","","Suma be PVM",null,"","","","","",""]
[null,"","","","PVM suma",null,"","","","","",""]
[null,"","","","Suma su PVM",null,"","","","","",""]
[]
["177.","Klizmos rinkinys"]
["177.1.","Klizmos rinkinys",6000,"Vnt.",0.57999999999999996,{"$f":"E301*C301","v":3480},"Enema Set, Plastik Medikal Ürünler San. Tic. Ltd. Şti","","",""]
["177.1.1.","Kateterio ilgis ne mažiau 110cm",null,null,null,null,null,"Kateterio ilgis 110cm"]
["177.1.2.","Kateteris minkštu, atviru galiuku, su 2 skylutėmis, padengtas lubrikantu, sugraduota",null,null,null,null,null,"Kateteris minkštu, atviru galiuku, su 2 skylutėmis, padengtas lubrikantu, sugraduota"]
["177.1.3.","Sugraduotas polivinilo chlorido maišelis, talpa -1750ml",null,null,null,null,null,"Sugraduotas polivinilo chlorido maišelis, talpa -1750ml"]
["177.1.4.","Spaustukas, servetėlė, polietileninės pirštinės, skystas muilas",null,null,null,null,null,"Spaustukas, servetėlė, polietileninės pirštinės, skystas muilas"]
[null,"","","","Suma be PVM",{"$f":"F301*1.05","v":3654},"","","","","",""]
[null,"","","","PVM suma",{"$f":"F308-F306","v":182.7},"","","","","",""]
[null,"","","","Suma su PVM",{"$f":"F306*1.05","v":3836.7},"","","","","",""]
[]
["178.","Apyrankės naujagimiams"]
["178.1.","Apyrankės naujagimiams",9000,"Vnt.",0.04,{"$f":"E311*C311","v":360},"ID Band, Channel Medical Group","","",""]
["178.1.1.","Vienkartinė, plastikinė juostelė 15,5-16,0 cm ilgio su užsegamu įtaisu. Iš vandeniui atsparios medžiagos",null,null,null,null,null,"Vienkartinė, plastikinė juostelė 15,5 cm ilgio su užsegamu įtaisu. Iš vandeniui atsparios medžiagos"]
["178.1.2.","Išoriniame paviršiuje su intarpu duomenų užrašymui. Užrašymo vietos plotis 1,5-2,0 cm",null,null,null,null,null,"Išoriniame paviršiuje su intarpu duomenų užrašymui. Užrašymo vietos plotis 1,5cm"]
["178.1.3.","Spalvos:mėlyna ir ružava",null,null,null,null,null,"Spalvos:mėlyna ir ružava"]
[null,"","","","Suma be PVM",{"$f":"F311","v":360},"","","","","",""]
[null,"","","","PVM suma",{"$f":"F317-F315","v":18},"","","","","",""]
[null,"","","","Suma su PVM",{"$f":"F315*1.05","v":378},"","","","","",""]
[]
["179.","Akinukai fototerapijai"]
["179.1.","Akinukai fototerapijai",50,"Vnt.",1.76,{"$f":"E320*C320","v":88},"Phototheraphy glasses, CV Medica","","",""]
["179.1.1.","Vienkartiniai. Naujagimiams",null,null,null,null,null,"Vienkartiniai. Naujagimiams"]
[null,"","","","Suma be PVM",{"$f":"F320","v":88},"","","","","",""]
[null,"","","","PVM suma",{"$f":"F324-F322","v":4.4000000000000004},"","","","","",""]
[null,"","","","Suma su PVM",{"$f":"F322*1.05","v":92.4},"","","","","",""]
[]
["180.","Konektorius mekonijaus išsiurbimo"]
["180.1.","Konektorius mekonijaus išsiurbimo",100,"Vnt.",4,{"$f":"E327*C327","v":400},"Meconium Aspiration Connector, Bicakcilar Tibbi Cihazlar San.Ve Tic. A.S","","",""]
["180.1.1.","Jungiasi prie endotrachėjinio vamzdelio",null,null,null,null,null,"Jungiasi prie endotrachėjinio vamzdelio"]
["180.1.2.","Pirštu kontroliuojama anga",null,null,null,null,null,"Pirštu kontroliuojama anga"]
["180.1.3.","Permatomas, be latekso",null,null,null,null,null,"Permatomas, be latekso"]
[null,"","","","Suma be PVM",{"$f":"F327","v":400},"","","","","",""]
[null,"","","","PVM suma",{"$f":"F333-F331","v":20},"","","","","",""]
[null,"","","","Suma su PVM",{"$f":"F331*1.05","v":420},"","","","","",""]
[]
["181.","Rinkinys kraujo grupės nustatymui"]
["181.1."," Rinkinys kraujo grupės nustatymui ABO",2400,"Vnt.",null,null,null,"","",""]
["181.1.1.","ABO antigeno nustatymo testas monokloniniais reagentais. Ekspres būdu"]
[null,"","","","Suma be PVM",null,"","","","","",""]
[null,"","","","PVM suma",null,"","","","","",""]
[null,"","","","Suma su PVM",null,"","","","","",""]
[]
["182.","Davikliai SPO2"]
["182.1.","Davikliai SPO2",40,"Vnt.",null,null,null,"","",""]
["182.1.1.","Daugkartinio naudojimo SpO2 daviklis naujagimiams, tinkamas naudoti su paciento monitoriais Philips IntelliVue MP20 (kodas M1193A"]
["182.1.2.","Daviklio tipas: Guminis, apvyniojams apie plaštaką arba pėdą"]
["182.1.3.","Sudėtyje neturi būti latekso"]
["182.1.4.","Daviklis atsparus skysčiams"]
["182.1.5.","Laido ilgis ne mažiau 1,5m"]
["182.1.6.","Svoris ne daugiau 85g"]
[null,"","","","Suma be PVM",null,"","","","","",""]
[null,"","","","PVM suma",null,"","","","","",""]
[null,"","","","Suma su PVM",null,"","","","","",""]
[]
["183.","Drėkintuvas O2 su EU jungtimi"]
["183.1.","Drėkintuvas O2 su EU jungtimi",60,"Vnt.",null,null,null,"","",""]
["183.1.1.","Galimybė prijungti prie centralizuoto deguonies srauto"]
["183.1.2.","Jungtys O2 nosinei kaniulei"]
["183.1.3.","Srauto reguliatorius"]
["183.1.4.","126 ml buteliukas prie 250ml O2 drėkinimui. Buteliukas autoklavuojamas"]
[null,"","","","Suma be PVM",null,"","","","","",""]
[null,"","","","PVM suma",null,"","","","","",""]
[null,"","","","Suma su PVM",null,"","","","","",""]
[]
["184.","Deguonies drėkintuvas-dozatorius"]
["184.1.","Deguonies drėkintuvas-dozatorius",40,"Vnt.",80,{"$f":"E365*C365","v":3200},"Dz Medicale Srl","","",""]
["184.1.1.","Deguonies drėgmės srautas: 0-15 l/min",null,null,null,null,null,"Deguonies drėgmės srautas: 0-15 l/min"]
["184.1.2.","Drėkintuvo parametrai: 85 x 75 x 275mm ±1mm",null,null,null,null,null,"Drėkintuvo parametrai: 85 x 75 x 275mm"]
["184.1.3.","Svoris 500g ± 20g",null,null,null,null,null,"Svoris 500g"]
["184.1.4.","Pakavimo detalės 10vnt. 310 x 430x 595mm ±10mm",null,null,null,null,null,"Pakavimo detalės 10vnt. 310 x 430x 595mm "]
["184.1.5.","Tinkamos jungtys: ANFOR, BS, DIN",null,null,null,null,null,"Tinkamos jungtys: ANFOR, BS, DIN"]
[null,"","","","Suma be PVM",{"$f":"F365","v":3200},"","","","","",""]
[null,"","","","PVM suma",{"$f":"F373-F371","v":672},"","","","","",""]
[null,"","","","Suma su PVM",{"$f":"F371*1.21","v":3872},"","","","","",""]
[]
["185.","Buteliukai "]
["185.1.","Buteliukai kūdikiams",30,"Vnt.",null,null,null,"","",""]
["185.1.1.","Plastmasiniai. 250ml (±20ml) su lateksiniu vidutinio dydžio žinduku "]
["185.2.","Buteliukai kūdikiams",30,"Vnt.",null,null,null,"","",""]
["185.2.1.","Plastmasiniai. 150ml (±20ml) su lateksiniu vidutinio dydžio žinduku "]
[null,"","","","Suma be PVM",null,"","","","","",""]
[null,"","","","PVM suma",null,"","","","","",""]
[null,"","","","Suma su PVM",null,"","","","","",""]
[]
["186.","Atsiurbėjai seilių"]
["186.1.","Atsiurbėjai seilių",15000,"Vnt.",null,null,null,"","",""]
["186.1.1.","Odontologams. Nesterilūs, plastikiniai su metaline juostele, lankstūs"]
[null,"","","","Suma be PVM",null,"","","","","",""]
[null,"","","","PVM suma",null,"","","","","",""]
[null,"","","","Suma su PVM",null,"","","","","",""]
[]
["187.","Rinkinys atsiurbimo iš trachėjos"]
["187.1.","Rinkinys atsiurbimo iš trachėjos",350,"Vnt.",0.68,{"$f":"E392*C392","v":238},"Trachea Suction Set, Bicakcilar Tibbi Cihazlar San.Ve Tic. A.S","","",""]
["187.1.1.","Skirtas atsiurbimui iš trachėjos ir sekreto iš bronchų surinkimui",null,null,null,null,null,"Skirtas atsiurbimui iš trachėjos ir sekreto iš bronchų surinkimui"]
["187.1.2.","Sudėtis: rezervuaras surinkti, užkimštas kamščiu",null,null,null,null,null,"Sudėtis: rezervuaras surinkti, užkimštas kamščiu"]
["187.1.3.","Du vamzdeliai, vienas iš jų su piršto kontrole",null,null,null,null,null,"Du vamzdeliai, vienas iš jų su piršto kontrole"]
["187.1.4.","Vieta paciento vardui užrašyti",null,null,null,null,null,"Vieta paciento vardui užrašyti"]
["187.1.5.","Sterilus, individualiam įpakavime",null,null,null,null,null,"Sterilus, individualiam įpakavime"]
[null,"","","","Suma be PVM",{"$f":"F392","v":238},"","","","","",""]
[null,"","","","PVM suma",{"$f":"F400-F398","v":11.9},"","","","","",""]
[null,"","","","Suma su PVM",{"$f":"F398*1.05","v":249.9},"","","","","",""]
[]
["188.","Absorbentas"]
["188.1.","Absorbentas",1000,"L",2.5,{"$f":"C403*E403","v":2500},"Sofnolime 2550, Molecular Products","","",""]
["188.1.1.","Pagamintas iš 2-5mm dydžio granulių",null,null,null,null,null,"Pagamintas iš 2-5mm dydžio granulių"]
["188.1.2.","Dulkėtumas yra minimalus ir kartu su kietumu užtikrina papildomą apsaugą nuo dulkėjimo transportavimo ar perkėlimo metu",null,null,null,null,null,"Dulkėtumas yra minimalus ir kartu su kietumu užtikrina papildomą apsaugą nuo dulkėjimo transportavimo ar perkėlimo metu"]
["188.1.3.","Pagamintas su 15,5% drėgme",null,null,null,null,null,"Pagamintas su 15,5% drėgme"]
["188.1.4.","Supakuotas ne daugiau kaip 4,5 kg (kanistruose apie 5 ltr.)",null,null,null,null,null,"Supakuotas ne daugiau kaip 4,5 kg (kanistruose apie 5 ltr.)"]
["188.1.5.","Spalvų indikatorius: baltas keičiasi į violetinį",null,null,null,null,null,"Spalvų indikatorius: baltas keičiasi į violetinį"]
["188.1.6.","Sudėtyje nėra kalio hidroksido, bario hidroksido, kvarco ir kalcio hidroksido",null,null,null,null,null,"Sudėtyje nėra kalio hidroksido, bario hidroksido, kvarco ir kalcio hidroksido"]
[null,"","","","Suma be PVM",{"$f":"F403","v":2500},"","","","","",""]
[null,"","","","PVM suma",{"$f":"F412-F410","v":125},"","","","","",""]
[null,"","","","Suma su PVM",{"$f":"F410*1.05","v":2625},"","","","","",""]
[]
["189.","Aliejus masažinis "]
["189.1.","Aliejus masažinis. Talpa/pakuotė po 5Ltr. +- 200ml",120,"L",4,{"$f":"E415*C415","v":480},"Neutral Massage Oil, Telic SAU","","",""]
[null,"","","","Suma be PVM",{"$f":"F415","v":480},"","","","","",""]
[null,"","","","PVM suma",{"$f":"F418-F416","v":24},"","","","","",""]
[null,"","","","Suma su PVM",{"$f":"F416*1.05","v":504},"","","","","",""]
[]
["190.","Atsiurbėjas gleivių "]
["190.1.","Atsiurbėjas gleivių CH/Fr10",50,"Vnt.",0.4,{"$f":"E421*C421","v":20},"Mucus Extractor, Changshu Taining Medical Equipment","","",""]
["190.1.1.","Vienkartinis. Sterilus išplovų surinkėjas bronchoskopavimui su antgaliu",null,null,null,null,null,"Vienkartinis. Sterilus išplovų surinkėjas bronchoskopavimui su antgaliu"]
["190.1.2.","30ml talpa",null,null,null,null,null,"30ml talpa"]
["190.1.3.","Luer lock jungtis",null,null,null,null,null,"Luer lock jungtis"]
[null,"","","","Suma be PVM",{"$f":"F421","v":20},"","","","","",""]
[null,"","","","PVM suma",{"$f":"F427-F425","v":1},"","","","","",""]
[null,"","","","Suma su PVM",{"$f":"F425*1.05","v":21},"","","","","",""]
[]
["191.","Fiksažas citologijai"]
["191.1.","Fiksažas citologijai 200ml (±5 ml)",15,"Vnt.",null,null,null,"","",""]
[null,"","","","Suma be PVM",null,"","","","","",""]
[null,"","","","PVM suma",null,"","","","","",""]
[null,"","","","Suma su PVM",null,"","","","","",""]
[]
["192.","Kranelis"]
["192.1.","Kranelis",8100,"Vnt.",0.22,{"$f":"E436*C436","v":1782},"3-way stopcock, Cair LGL","","",""]
["192.1.1.","3-jų krypčių, 360 laisnių posūkio kampo galimybė",null,null,null,null,null,"3-jų krypčių, 360 laisnių posūkio kampo galimybė"]
["192.1.2.","Luer lock konektoriai",null,null,null,null,null,"Luer lock konektoriai"]
["192.1.3.","Gali būti naudojamas nepertraukiamai iki 7 parų",null,null,null,null,null,"Gali būti naudojamas nepertraukiamai iki 7 parų"]
["192.1.4.","Maksimalus prijungimo limitas ne mažiau 600 kartų",null,null,null,null,null,"Maksimalus prijungimo limitas 600 kartų"]
[null,"","","","Suma be PVM",{"$f":"F436","v":1782},"","","","","",""]
[null,"","","","PVM suma",{"$f":"F443-F441","v":89.1},"","","","","",""]
[null,"","","","Suma su PVM",{"$f":"F441*1.05","v":1871.1},"","","","","",""]
[]
["193.","Injektorius"]
["193.1.","Injektorius ",100,"Vnt.",null,null,null,"","",""]
["193.1.1.","Vienkartinis, sterilus"]
["193.1.2.","Ilgis 1650mm +/- 5mm, "]
["193.1.3.","Adatos skersmuo 0,6mm (23G), adatos ildis 4mm"]
["193.1.4.","Tinkantis kanalui 2,8mm diametro"]
[null,"","","","Suma be PVM",null,"","","","","",""]
[null,"","","","PVM suma",null,"","","","","",""]
[null,"","","","Suma su PVM",null,"","","","","",""]
[]
["194.","Mentelė medinė liežuviui"]
["194.1.","Mentelė medinė liežuviui",67000,"Vnt.",0.01,{"$f":"E456*C456","v":670},"Tongue Depressor, Suzhou Shuangfei","","",""]
["194.1.1.","Nesterili",null,null,null,null,null,"Nesterili"]
[null,"","","","Suma be PVM",{"$f":"F456","v":670},"","","","","",""]
[null,"","","","PVM suma",{"$f":"F460-F458","v":33.5},"","","","","",""]
[null,"","","","Suma su PVM",{"$f":"F458*1.05","v":703.5},"","","","","",""]
[]
["195.","Purkštuvas vaistų su kandikliu"]
["195.1.","Purkštuvas vaistų su kandikliu",2000,"Vnt.",0.43,{"$f":"C463*E463","v":860},"130108, Plastimed","","",""]
["195.1.1.","Vienkartiniai",null,null,null,null,null,"Vienkartiniai"]
[null,"","","","Suma be PVM",{"$f":"F463","v":860},"","","","","",""]
[null,"","","","PVM suma",{"$f":"F467-F465","v":43},"","","","","",""]
[null,"","","","Suma su PVM",{"$f":"F465*1.05","v":903},"","","","","",""]
[]
["196.","Rinkinys intraveninio vaistų skyrimo"]
["196.1.","Rinkinys intraveninio vaistų skyrimo",4200,"Vnt.",null,null,null,"","",""]
["196.1.1.","Skirtas infuzijai naudojant B.Braun siurblius. 250cm ilgio"]
[null,"","","","Suma be PVM",null,"","","","","",""]
[null,"","","","PVM suma",null,"","","","","",""]
[null,"","","","Suma su PVM",null,"","","","","",""]
[]
["197.","Skėtikliai makšties"]
["197.1.","Skėtikliai makšties",6000,"Vnt.",0.16,{"$f":"E477*C477","v":960},"Vaginal Speculum, Changzhou Shunfeng Plastic","","",""]
["197.1.1.","Vienkartiniai. S/L/M",null,null,null,null,null,"Vienkartiniai. S/L/M"]
[null,"","","","Suma be PVM",{"$f":"F477","v":960},"","","","","",""]
[null,"","","","PVM suma",{"$f":"F481-F479","v":48},"","","","","",""]
[null,"","","","Suma su PVM",{"$f":"F479*1.05","v":1008},"","","","","",""]
[]
["198.","Šepetėliai"]
["198.1.","Šepetėlis onkocitologiniam mėginiui ",1000,"Vnt.",0.12,{"$f":"E484*C484","v":120},"Endocervical Brush, Plastik Medikal Ürünler San. Tic. Ltd. Şti","","",""]
["198.1.1.","Sraigtelio tipo",null,null,null,null,null,"Sraigtelio tipo"]
[null,"","","","Suma be PVM",{"$f":"F484","v":120},"","","","","",""]
[null,"","","","PVM suma",{"$f":"F488-F486","v":6},"","","","","",""]
[null,"","","","Suma su PVM",{"$f":"F486*1.05","v":126},"","","","","",""]
[]
["199.","Švirkštynės"]
["199.1.","Švirkštynės",10,"Vnt.",null,null,null,"","",""]
["199.1.1.","V1,2,3. Minkštos vienalytės medžiagos su minkštu antgaliu"]
[null,"","","","Suma be PVM",null,"","","","","",""]
[null,"","","","PVM suma",null,"","","","","",""]
[null,"","","","Suma su PVM",null,"","","","","",""]
[]
["200.","Taurelės vaistams"]
["200.1.","Taurelės vaistams",152000,"Vnt.",0.01,{"$f":"E498*C498","v":1520},"Medicine Beaker, Primed Medizintechnik Halberstadt GmbH","","",""]
["200.1.1.","Plastmasinės, graduotos, be dangtelio, 30ml tūrio",null,null,null,null,null,"Plastmasinės, graduotos, be dangtelio, 30ml tūrio"]
[null,"","","","Suma be PVM",{"$f":"F498","v":1520},"","","","","",""]
[null,"","","","PVM suma",{"$f":"F502-F500","v":76},"","","","","",""]
[null,"","","","Suma su PVM",{"$f":"F500*1.05","v":1596},"","","","","",""]

{"sheet":"Subtiekėjai","index":1,"n_rows":100,"n_cols":9,"rows_kept":100,"cut":false,"hidden":false,"merged":[[4,0,4,1],[4,2,4,4],[4,5,4,7],[4,8,4,9],[1,0,1,9],[3,0,3,1],[3,2,3,4],[3,5,3,7],[3,8,3,9],[5,0,5,1],[5,2,5,4],[5,5,5,7],[5,8,5,9],[6,0,6,1],[6,2,6,4],[6,5,6,7],[6,8,6,9],[17,1,17,6],[17,7,17,9],[7,0,7,1],[7,2,7,4],[7,5,7,7],[7,8,7,9],[8,0,8,1],[8,2,8,4],[8,5,8,7],[8,8,8,9],[10,0,10,9],[12,0,12,9],[14,0,14,9],[16,1,16,6],[16,7,16,9],[18,1,18,6],[18,7,18,9],[19,1,19,6],[19,7,19,9],[20,1,20,6],[20,7,20,9],[38,0,38,9],[21,1,21,6],[21,7,21,9],[24,0,24,3],[24,4,24,9],[25,0,25,9],[26,0,26,9],[28,0,28,9],[32,0,32,3],[32,4,32,9],[35,0,35,3],[35,4,35,9]]}
[]
["Sutarties vykdymui numatome pasitelkti šiuos subtiekėjus / subteikėjus / subrangovus (įrašyti visus subtiekėjus / subteikėjus / subrangovus nepriklausomai nuo tiekiamų prekių/ teikiamų paslaugų/ atliekamų darbų vertės):"]
[]
["Subtiekėjo / subteikėjo / subrangovo (-ų) pavadinimas (-ai)",null,"Adresas",null,null,"Trumpas aprašymas",null,null,"Procentas nuo pasiūlymo kainos be PVM"]
["_",null,"_",null,null,"_",null,null,"_"]
[]
[]
[]
[]
[]
["Jeigu pirkimo dokumentų 18 punkte numatytas subtiekimo / subteikimo / subrangos apribojimas:\nMes patvirtiname, kad subtiekėjams / subteikėjams / subrangovams (tiekėjams, kuriuos pasamdysime dalies sutartyje numatytų prekių tiekimui /paslaugų teikimui / darbų atlikimui) perduodamų tiekti prekių / teikti paslaugų/ atlikti darbų dalis neviršys       proc. pasiūlymo kainos be PVM."]
[]
["Mes patvirtiname, kad esame / nesame (nereikalingą išbraukti) laikomi asocijuotais (susijusiais) su Perkančiąja organizacija pagal Lietuvos Respublikoje galiojančių teisės aktų (Lietuvos Respublikos pelno mokesčio, Lietuvos Respublikos pridėtinės vertės mokesčio ir Lietuvos Respublikos gyventojų pajamų mokesčio įstatymų) nuostatas. "]
[]
["Kartu su pasiūlymu pateikiami šie dokumentai:"]
[]
["Eil.Nr.","\"Pateiktų skaitmeninių dokumentų (ar jų kopijų) pavadinimas\n(pasiūlymą sudarančių konfidencialių dokumentų pavadinimai pažymėti prierašu KONFIDENCIALU)\"",null,null,null,null,null,"Prisegtos bylos (failo) pavadinimas "]
[1,"Pasiūlymas",null,null,null,null,null,"Pasiūlymas"]
[2,"Įgaliojimas pasirašyti pasiūlymą",null,null,null,null,null,"Įgaliojimas pasirašyti pasiūlymą"]
[3,"Europos bendrasis viešųjų pirkimų dokumentas",null,null,null,null,null,"Eurospos bendrasis viešųjų pirkimų dokumentas"]
[]
[]
[]
[]
["Pasiūlymo galiojimo užtikrinimui pateikiame :"]
["Pasiūlymo galiojimo užtikrinimas nereikalaujamas."]
["(Nurodyti užtikrinimo būdą, dydį, dokumentus)"]
[]
["\nPasiūlymas galioja iki termino, nustatyto pirkimo dokumentuose.\n\nPasiūlymo neatskiriama dalis yra (rašoma, jeigu buvo reikalauta prie pasiūlymo pridėti atitinkamą dokumentą)"]
[]
[]
[]
["Tiekėjo arba jo įgalioto asmens pareigų pavadinimas",null,null,null,"Administratorė"]
[]
[]
["Pasirašančio asmens vardas ir pavardė",null,null,null,"Gintarė Saročkienė"]
[]
[]
["**kadangi visas pasiūlymas pasirašomas saugiu elektroniniu parašu, šio dokumento atskirai pasirašyti neprivaloma."]
[]
[]
[]
[]
[]
[]
[]
[]
[]
[]
[]
[]
[]
[]
[]
[]
[]
[]
[]
[]
[]
[]
[]
[]
[]
[]
[]
[]
[]
[]
[]
[]
[]
[]
[]
[]
[]
[]
[]
[]
[]
[]
[]
[]
[]
[]
[]
[]
[]
[]
[]
[]
[]
[]
[]
[]
[]
[]
[]
[]
["563-4"]